bitfinex/quotes_ETHUSD_20250106
["timestamp","ask_amount","ask_price","bid_price","bid_amount"]
[1736184916322,6.82277388,3694.2,3694.1,34.0]
[1736184916615,6.80031712,3694.2,3694.1,34.0]
[1736184919963,2.70724,3693.8,3693.1,0.8281]
[1736184920142,2.57582719,3693.6,3693.1,0.8281]
[1736184920464,2.57582719,3693.6,3693.5,35.0]
[1736184921153,5.28320719,3693.6,3693.5,35.0]
[1736184921374,5.56324667,3693.6,3693.5,35.0]
[1736184921536,5.54078991,3693.6,3693.5,35.0]
[1736184923776,14.33088991,3693.6,3693.5,35.0]
[1736184924064,2.70819,3692.5,3692.2,0.8235]
[1736184924270,2.57582719,3692.3,3692.2,0.8235]
[1736184924841,2.57582719,3692.3,3692.2,35.8235]
[1736184926563,2.57582719,3692.3,3692.2,35.0]
[1736184929950,11.34878559,3692.3,3692.2,35.0]
[1736184930297,2.70896,3691.5,3691.3,1.1338673]
[1736184930421,2.57582719,3691.4,3691.3,1.1338673]
[1736184931060,2.57582719,3691.4,3691.3,36.1338673]
[1736184932271,2.57582719,3691.4,3691.3,35.0]
[1736184933379,2.63192639,3691.4,3691.3,35.0]
[1736184933554,5.6868347,3691.4,3691.3,35.0]
[1736184933753,5.6307355,3691.4,3691.3,35.0]
[1736184933954,5.68718708,3691.4,3691.3,35.0]
[1736184939383,5.34126877,3691.4,3691.3,35.0]
[1736184946062,8.04678877,3691.4,3691.3,35.0]
[1736184946786,5.47096158,3691.4,3691.3,35.0]
[1736184947473,6.26916158,3691.4,3691.3,35.0]
[1736184947680,6.26590174,3691.4,3691.3,35.0]
[1736184947999,0.05645158,3691.4,3691.3,35.0]
[1736184948504,5.28481719,3691.4,3691.3,35.0]
[1736184948677,5.36087142,3691.4,3691.3,35.0]
[1736184948879,8.36087142,3691.4,3691.3,35.0]
[1736184949080,2.7097,3690.5,3689.8,0.8202]
[1736184949294,6.49554,3691.3,3689.8,0.8202]
[1736184949295,0.05344872,3690.4,3689.8,0.8202]
[1736184949613,0.02245676,3690.5,3689.9,35.353049]
[1736184949981,2.57582719,3690.3,3689.9,0.353049]
[1736184950209,2.57582719,3690.0,3689.8,0.8202]
[1736184950573,2.57582719,3690.0,3689.9,35.0]
[1736184951109,2.57582719,3690.3,3689.9,35.0]
[1736184951482,0.02245676,3690.2,3689.9,35.0]
[1736184951709,2.59828395,3690.3,3689.9,35.0]
[1736184954588,2.59828395,3690.3,3689.8,0.8202]
[1736184957373,0.05157072,3690.2,3689.8,0.8202]
[1736184957878,0.05120469,3690.1,3689.8,0.8202]
[1736184958215,2.59828395,3690.3,3689.8,0.8202]
[1736184958391,0.05118981,3690.0,3689.8,0.8202]
[1736184958592,2.59828395,3690.3,3689.8,0.8202]
[1736184958787,0.05117493,3689.9,3689.8,0.8202]
[1736184958993,2.59828395,3690.3,3689.8,0.8202]
[1736184959195,0.05105941,3689.9,3689.8,0.8202]
[1736184959418,0.02245676,3690.3,3689.8,0.8202]
[1736184959882,0.05110405,3690.2,3689.8,0.8202]
[1736184960079,0.02245676,3690.3,3689.8,0.8202]
[1736184960279,0.05109904,3690.2,3689.8,0.8202]
[1736184960480,2.7099,3690.2,3689.8,0.8202]
[1736184960681,3.8249266,3690.1,3689.5,0.7942]
[1736184961115,2.71008,3690.0,3689.5,0.7942]
[1736184961323,2.78356885,3689.9,3689.3,1.31992824]
[1736184961824,0.07345885,3689.9,3689.3,1.31992824]
[1736184961985,0.05100209,3689.9,3689.3,1.31992824]
[1736184962841,3.50061676,3690.1,3689.3,1.72299706]
[1736184963019,0.02245676,3690.1,3689.3,0.94669706]
[1736184963228,0.05076611,3690.0,3689.4,0.7906]
[1736184963586,0.02245676,3690.2,3689.4,0.7906]
[1736184963783,0.05075123,3689.9,3689.4,0.7906]
[1736184964022,0.02245676,3690.2,3689.4,1.49296243]
[1736184964222,0.05074888,3689.8,3689.4,1.49296243]
[1736184964423,2.71005,3690.0,3689.4,0.7906]
[1736184964730,0.84855676,3689.9,3689.3,0.54362824]
[1736184964898,2.71043,3689.5,3689.3,0.54362824]
[1736184965103,0.05073116,3689.4,3689.3,0.54362824]
[1736184965421,0.05073116,3689.4,3688.9,2.57582719]
[1736184965422,0.02245676,3690.4,3689.0,2.73784302]
[1736184965626,0.35582768,3690.3,3689.1,0.7906]
[1736184965790,2.71001,3690.1,3689.2,0.02710301]
[1736184965991,0.02245676,3690.0,3689.2,0.02710301]
[1736184966322,2.71003,3690.0,3689.2,0.02710301]
[1736184966538,0.05083571,3689.9,3689.2,0.02710301]
[1736184966737,0.05083571,3689.9,3689.2,0.74377982]
[1736184967091,0.02245676,3690.2,3689.2,0.74377982]
[1736184967294,0.050786,3690.1,3689.4,2.57582719]
[1736184967603,0.02245676,3690.2,3689.4,2.57582719]
[1736184968011,2.76066088,3690.1,3689.4,2.57582719]
[1736184968423,0.02245676,3690.0,3689.4,2.57582719]
[1736184968752,2.71003,3690.0,3689.5,0.7683]
[1736184968949,0.05067111,3689.9,3689.5,0.79540298]
[1736184969113,3.06569768,3690.3,3689.5,0.79540298]
[1736184969114,0.02245676,3690.2,3689.5,0.7683]
[1736184969313,2.73233676,3690.2,3689.5,0.7683]
[1736184969601,0.05070088,3690.1,3689.5,0.7683]
[1736184969924,0.05070088,3690.1,3689.6,0.02710167]
[1736184970122,0.05070088,3690.1,3689.5,0.7683]
[1736184970318,0.02245676,3690.3,3689.5,0.7683]
[1736184970626,0.05070589,3690.2,3689.5,0.7683]
[1736184970871,2.71041,3689.5,3689.0,1.1338673]
[1736184971140,0.07321365,3689.4,3689.0,1.1338673]
[1736184971293,2.78368365,3689.4,3689.0,1.1338673]
[1736184972116,2.78368365,3689.4,3688.8,2.57582719]
[1736184972314,0.05075689,3689.4,3688.8,3.07972508]
[1736184972554,2.73271676,3689.7,3689.1,2.57582719]
[1736184972758,0.05066651,3689.6,3689.2,0.8235]
[1736184973953,2.78344327,3689.6,3689.2,0.8235]
[1736184974251,0.07312327,3689.6,3689.2,0.8235]
[1736184974397,2.71048,3689.4,3689.0,0.8235]
[1736184974706,0.05044621,3689.3,3689.0,0.8235]
[1736184977736,2.71048,3689.4,3689.0,0.8235]
[1736184978169,2.71083,3688.9,3688.8,1.4048088]
[1736184978309,2.75943208,3688.9,3688.8,1.4048088]
[1736184978700,2.75943208,3688.9,3688.6,1.4048088]
[1736184978701,2.71098,3688.7,3688.6,1.4048088]
[1736184978941,2.75947296,3688.7,3688.6,1.4048088]
[1736184980406,2.7113,3688.3,3688.1,0.005]
[1736184980608,2.73379676,3688.2,3688.1,0.005]
[1736184980800,2.78229043,3688.2,3688.1,0.005]
[1736184982065,2.78229043,3688.2,3688.1,35.005]
[1736184982766,9.86717747,3688.2,3688.1,35.005]
[1736184983035,10.66582071,3688.2,3688.1,35.005]
[1736184983751,10.03784367,3688.2,3688.1,35.005]
[1736184983955,3.58093367,3688.2,3688.1,35.005]
[1736184984107,3.53244,3688.2,3688.1,35.005]
[1736184984306,2.71134,3688.2,3688.1,35.005]
[1736184984942,2.75837801,3688.2,3688.1,35.005]
[1736184985240,3.03646149,3688.2,3688.1,35.005]
[1736184985538,2.75837801,3688.2,3688.1,35.005]
[1736184986443,0.04703801,3688.2,3688.1,35.005]
[1736184986645,0.04703801,3688.2,3688.1,35.7918]
[1736184986938,2.71105,3688.7,3688.1,35.7918]
[1736184987161,0.0075,3689.6,3688.2,2.57582719]
[1736184987307,0.04721869,3689.3,3688.5,2.57582719]
[1736184987633,2.71041,3689.5,3688.9,35.7868]
[1736184987861,0.02245676,3689.7,3688.9,35.7868]
[1736184988026,0.04566152,3689.4,3688.9,0.7868]
[1736184988226,0.02245676,3689.4,3688.9,0.7868]
[1736184988437,0.04564663,3689.3,3689.0,0.02710643]
[1736184988740,2.71017,3689.8,3689.0,0.33897336]
[1736184988939,0.06833982,3689.7,3689.4,35.0]
[1736184989270,0.02245676,3689.7,3689.4,35.0]
[1736184989627,2.71039,3689.5,3689.4,35.0]
[1736184989946,2.75658888,3689.5,3689.4,35.0]
[1736184990270,3.30551444,3689.5,3689.4,35.0]
[1736184990561,2.71092,3688.8,3688.3,0.7908]
[1736184990705,2.7794837,3688.7,3688.1,1.1388673]
[1736184990911,2.7794837,3688.7,3688.6,35.0]
[1736184991146,2.71102,3688.7,3688.6,35.0]
[1736184991307,0.02245676,3689.0,3688.6,35.0]
[1736184991508,2.71098,3688.7,3688.6,35.0]
[1736184992065,2.71098,3688.7,3688.1,0.005]
[1736184992275,0.02245676,3688.6,3688.1,0.005]
[1736184992573,0.06828374,3688.6,3688.1,0.005]
[1736184993072,0.04582698,3688.6,3688.5,35.0]
[1736184993362,2.7109,3688.8,3688.5,35.0]
[1736184993505,0.04584187,3688.7,3688.5,35.0]
[1736184993710,2.7109,3688.8,3688.5,35.0]
[1736184993962,0.06829863,3688.7,3688.5,35.0]
[1736184994286,2.71105,3688.6,3688.5,35.0]
[1736184994752,2.75688815,3688.6,3688.5,35.0]
[1736184996234,5.75688815,3688.6,3688.5,35.0]
[1736184996406,10.75688815,3688.6,3688.5,35.0]
[1736184996612,12.18645597,3688.6,3688.5,35.0]
[1736184996812,3.0,3688.5,3688.1,0.005]
[1736184997026,2.71134,3688.2,3688.1,0.005]
[1736184997567,0.04575068,3688.2,3688.1,35.7712]
[1736184997777,2.71127,3688.3,3688.1,35.005]
[1736184997983,2.71127,3688.3,3688.1,0.005]
[1736184998185,2.71134,3688.2,3688.1,0.005]
[1736184998331,2.77801999,3688.2,3688.1,35.005]
[1736184998538,2.71134,3688.2,3688.1,35.005]
[1736184998741,2.75556323,3688.2,3688.1,35.005]
[1736184998969,2.71134,3688.2,3688.1,35.005]
[1736184999293,2.71131,3688.3,3688.1,35.005]
[1736184999450,2.71131,3688.3,3688.1,0.005]
[1736184999636,2.73360676,3688.5,3688.1,0.005]
[1736184999837,0.04418975,3688.2,3688.1,0.005]
[1736185000040,2.73360676,3688.5,3688.1,0.005]
[1736185000262,0.04416045,3688.2,3688.1,0.005]
[1736185000574,0.04416045,3688.2,3688.1,35.005]
[1736185000789,0.02245676,3688.4,3688.1,35.005]
[1736185001100,2.73366676,3688.4,3688.1,35.005]
[1736185001396,0.04415025,3688.3,3688.1,0.005]
[1736185001706,0.04415025,3688.3,3688.2,35.0]
[1736185003065,0.04415025,3688.3,3688.2,41.10360311]
[1736185003273,2.71069,3689.1,3688.2,41.10360311]
[1736185003607,2.71069,3689.1,3688.2,6.10360311]
[1736185003910,2.71069,3689.1,3688.6,35.0]
[1736185004049,2.77602252,3689.0,3688.6,35.0]
[1736185004402,2.71061,3689.3,3688.6,35.0]
[1736185004605,2.71061,3689.3,3688.7,0.8102]
[1736185004897,2.71071,3689.1,3688.7,0.8102]
[1736185005216,2.77613815,3689.0,3688.8,35.0]
[1736185005356,2.71083,3688.9,3688.8,35.0]
[1736185005604,2.75372649,3688.9,3688.8,35.0]
[1736185006870,3.38329981,3688.9,3688.8,35.0]
[1736185009296,2.75372649,3688.9,3688.8,35.0]
[1736185011796,0.04289649,3688.9,3688.8,35.0]
[1736185011955,0.02245676,3689.2,3688.8,35.0]
[1736185012282,0.04288382,3689.1,3688.9,0.7893]
[1736185012439,0.04288382,3689.1,3688.9,0.81640939]
[1736185012640,2.73265676,3689.8,3688.9,0.81640939]
[1736185012641,2.7102,3689.8,3689.0,35.35272894]
[1736185012880,0.7968,3689.5,3689.0,35.0]
[1736185013202,0.06548577,3689.4,3688.9,0.7893]
[1736185013366,2.71062,3689.2,3688.9,0.7893]
[1736185013695,0.04298434,3689.1,3688.9,0.7893]
[1736185013898,2.7761411,3689.1,3688.6,0.8118]
[1736185014042,2.71089,3688.9,3688.6,0.8118]
[1736185014247,2.7761511,3689.1,3688.6,0.8118]
[1736185014440,0.04292318,3688.8,3688.6,0.8118]
[1736185014697,0.02245676,3688.9,3688.7,35.0]
[1736185015338,2.71084,3688.9,3688.7,35.0]
[1736185015979,2.7109,3688.8,3688.7,35.0]
[1736185016405,2.98199,3688.8,3688.7,35.0]
[1736185016846,2.57582719,3689.4,3688.7,35.0]
[1736185017045,2.7107,3689.1,3688.7,35.0]
[1736185017347,0.0430188,3689.0,3688.7,35.0]
[1736185017553,2.71084,3688.9,3688.7,35.0]
[1736185017858,0.04299833,3688.8,3688.7,35.0]
[1736185018283,3.02245676,3689.3,3688.7,35.0]
[1736185018478,0.04299413,3688.8,3688.7,35.0]
[1736185018685,2.71082,3689.0,3688.7,35.0]
[1736185018852,0.04299413,3688.8,3688.7,35.0]
[1736185019052,0.02245676,3689.1,3688.8,0.8009]
[1736185019292,2.73310676,3689.2,3688.8,0.8009]
[1736185019714,0.7946,3689.9,3689.1,35.0]
[1736185019867,0.02245676,3689.8,3689.2,0.8009]
[1736185020272,2.70991,3690.2,3689.3,0.02710481]
[1736185020653,2.73240676,3690.1,3689.2,0.8009]
[1736185020822,2.73240676,3690.1,3690.0,35.0]
[1736185021118,2.70995,3690.1,3690.0,35.0]
[1736185021324,3.2407734,3690.1,3690.0,35.0]
[1736185021521,14.57880059,3690.1,3690.0,35.0]
[1736185021817,2.71053,3689.4,3688.9,1.9433673]
[1736185022016,2.59828395,3689.3,3688.9,1.1338673]
[1736185022214,2.71071,3689.1,3689.0,35.0]
[1736185022921,2.73299676,3689.3,3689.0,35.0]
[1736185023266,2.71054,3689.3,3689.0,35.0]
[1736185023469,0.02245676,3689.2,3689.0,35.0]
[1736185023780,2.71054,3689.3,3689.0,35.0]
[1736185023963,2.73292676,3689.4,3689.0,35.0]
[1736185024302,5.28592719,3689.9,3689.0,35.0]
[1736185024303,2.71032,3689.6,3689.0,35.0]
[1736185024633,0.02245676,3689.5,3689.1,0.7982]
[1736185024936,2.71032,3689.6,3689.1,0.7982]
[1736185025083,5.73265676,3689.8,3689.1,0.7982]
[1736185025416,3.0,3689.6,3689.1,0.7982]
[1736185025715,0.02245676,3689.5,3689.1,0.7982]
[1736185025861,0.02245676,3689.7,3689.1,0.7982]
[1736185026061,2.71046,3689.5,3689.1,0.7982]
[1736185026476,0.02245676,3689.4,3689.1,0.7982]
[1736185026723,2.71048,3689.4,3689.1,0.7982]
[1736185026894,0.27329368,3689.4,3689.1,0.7982]
[1736185027105,0.7747,3689.5,3688.7,2.22383784]
[1736185027258,0.02245676,3689.4,3688.7,1.40793784]
[1736185027458,2.71081,3689.0,3688.7,1.40793784]
[1736185027715,2.71081,3689.0,3688.6,1.40793784]
[1736185027917,2.7106,3689.3,3688.6,1.40793784]
[1736185028278,0.6083584,3689.3,3688.6,1.40793784]
[1736185028480,2.71076,3689.0,3688.6,1.40793784]
[1736185028636,0.02245676,3688.9,3688.6,1.40793784]
[1736185028840,0.02245676,3688.9,3688.4,2.22383784]
[1736185029169,0.02245676,3689.2,3688.4,2.22383784]
[1736185029380,2.71092,3688.8,3688.4,2.22383784]
[1736185029571,2.71098,3688.7,3688.4,2.22383784]
[1736185029963,2.71098,3688.7,3688.4,0.8159]
[1736185031780,0.02245676,3689.0,3688.4,0.8159]
[1736185032148,2.71088,3688.9,3688.4,0.8159]
[1736185032346,0.03832667,3688.8,3688.4,0.8159]
[1736185032692,2.73316676,3689.1,3688.4,0.8159]
[1736185032873,0.03822382,3688.7,3688.4,0.8159]
[1736185033211,0.03814204,3688.6,3688.4,0.8159]
[1736185033384,2.71081,3689.0,3688.4,0.8159]
[1736185033548,0.03818672,3688.9,3688.4,0.8159]
[1736185033744,0.33778883,3688.9,3688.4,0.8159]
[1736185034198,2.711,3688.7,3688.4,0.8159]
[1736185034497,0.06061558,3688.6,3688.4,0.8159]
[1736185034696,0.06061558,3688.6,3688.3,1.40894946]
[1736185035003,2.7112,3688.4,3688.3,1.40894946]
[1736185035138,2.74932902,3688.4,3688.1,0.005]
[1736185035861,0.03812902,3688.4,3688.1,0.005]
[1736185036263,2.71108,3688.6,3688.1,0.005]
[1736185036463,0.03805928,3688.3,3688.1,0.005]
[1736185036646,2.71113,3688.5,3688.1,0.005]
[1736185036845,0.03793128,3688.2,3688.1,0.005]
[1736185037095,2.71113,3688.5,3688.1,0.005]
[1736185037299,0.03793128,3688.2,3688.1,0.005]
[1736185037479,2.71113,3688.5,3688.1,0.005]
[1736185037845,0.06041496,3688.4,3688.1,0.005]
[1736185038094,2.71128,3688.3,3688.1,0.005]
[1736185038479,0.03792291,3688.2,3688.1,0.005]
[1736185038995,0.03792421,3688.2,3688.1,0.005]
[1736185039167,0.02245676,3688.4,3688.1,0.005]
[1736185039348,0.03793911,3688.3,3688.1,0.005]
[1736185039955,2.71115,3688.5,3688.1,0.005]
[1736185040157,0.0379498,3688.4,3688.1,0.005]
[1736185040364,0.06040656,3688.4,3688.1,0.005]
[1736185040585,2.77162656,3688.4,3688.1,0.005]
[1736185042486,2.71128,3688.3,3688.1,0.005]
[1736185043004,0.03790194,3688.2,3688.1,0.005]
[1736185043166,2.71134,3688.2,3688.1,0.005]
[1736185043376,2.74904635,3688.2,3688.1,0.005]
[1736185044192,3.55674635,3688.2,3688.1,0.005]
[1736185044395,4.18578266,3688.2,3688.1,0.005]
[1736185044630,2.74904635,3688.2,3688.1,0.005]
[1736185044933,0.03770635,3688.2,3688.1,0.005]
[1736185045234,2.71134,3688.2,3688.1,0.005]
[1736185045538,2.74897381,3688.2,3688.1,0.005]
[1736185045730,0.03763381,3688.2,3688.1,0.005]
[1736185046029,2.71134,3688.2,3688.1,0.005]
[1736185046174,2.7489793,3688.2,3688.1,0.005]
[1736185046379,3.0201133,3688.2,3688.1,0.005]
[1736185046679,3.04257006,3688.2,3688.1,0.005]
[1736185046925,2.7489793,3688.2,3688.1,0.005]
[1736185047793,3.5459793,3688.2,3688.1,0.005]
[1736185047991,6.56843606,3688.2,3688.1,0.005]
[1736185048227,10.0272893,3688.2,3688.1,0.005]
[1736185048387,11.55871995,3688.2,3688.1,0.005]
[1736185048718,8.07740995,3688.2,3688.1,0.005]
[1736185049021,2.7489793,3688.2,3688.1,0.005]
[1736185049937,2.77143606,3688.2,3688.1,0.005]
[1736185050076,7.77143606,3688.2,3688.1,0.005]
[1736185050283,2.7489793,3688.2,3688.1,0.005]
[1736185050524,10.63435571,3688.2,3688.1,0.005]
[1736185050697,12.70827895,3688.2,3688.1,0.005]
[1736185053935,2.7489793,3688.2,3688.1,0.005]
[1736185054821,0.0376393,3688.2,3688.1,0.005]
[1736185055131,2.73321676,3689.0,3688.1,0.7837115]
[1736185055293,2.71091,3688.8,3688.1,0.7566]
[1736185055494,2.71091,3688.8,3688.1,0.78371088]
[1736185055692,0.03607442,3688.7,3688.1,0.78371088]
[1736185056128,0.03607442,3688.7,3688.1,1.28690651]
[1736185057814,2.71077,3689.0,3688.1,1.28690651]
[1736185058034,2.71091,3688.8,3688.1,1.25979563]
[1736185058369,0.0362588,3688.7,3688.1,1.25979563]
[1736185058538,0.0362588,3688.7,3688.1,1.2869065]
[1736185058708,0.0362588,3688.7,3688.2,0.34768962]
[1736185058893,2.71091,3688.8,3688.2,0.34768962]
[1736185059094,0.03625936,3688.6,3688.2,0.34768962]
[1736185059294,0.03627975,3688.7,3688.2,0.34768962]
[1736185059528,0.03624996,3688.5,3688.2,0.34768962]
[1736185059829,0.03623507,3688.4,3688.2,0.34768962]
[1736185060019,0.02245676,3688.7,3688.2,0.34768962]
[1736185060334,0.03625936,3688.6,3688.1,0.7566]
[1736185060636,2.74731936,3688.6,3688.1,0.7566]
[1736185061003,0.03625936,3688.6,3688.1,0.7566]
[1736185061307,2.71086,3688.9,3688.1,0.78371153]
[1736185061502,0.02245676,3688.8,3688.1,0.78371153]
[1736185061689,0.05883649,3688.8,3688.2,0.51528782]
[1736185062646,0.03637973,3688.8,3688.1,0.7566]
[1736185062830,2.71109,3688.6,3688.1,0.7566]
[1736185063021,0.03635702,3688.5,3688.1,0.7566]
[1736185063602,2.73336676,3688.8,3688.1,0.7566]
[1736185063804,0.03638681,3688.7,3688.1,0.7566]
[1736185065008,2.74736681,3688.7,3688.1,0.7566]
[1736185065209,0.02245676,3688.6,3688.1,0.7566]
[1736185065406,0.03636252,3688.5,3688.1,0.7566]
[1736185065619,2.71098,3688.7,3688.1,0.7566]
[1736185065817,0.05883417,3688.6,3688.1,0.7566]
[1736185066750,2.76990417,3688.6,3688.1,0.7566]
[1736185066905,3.30447731,3688.6,3688.1,0.7566]
[1736185067101,3.1692345,3688.6,3688.1,0.005]
[1736185067301,2.71134,3688.2,3688.1,0.005]
[1736185067543,2.73379676,3688.2,3688.1,0.005]
[1736185067749,2.7704834,3688.2,3688.1,0.005]
[1736185068550,2.74802664,3688.2,3688.1,0.005]
[1736185069206,2.7704834,3688.2,3688.1,0.005]
[1736185069450,5.72421046,3688.2,3688.1,0.005]
[1736185069653,5.7017537,3688.2,3688.1,0.005]
[1736185070033,3.6299937,3688.2,3688.1,0.005]
[1736185070229,0.03668664,3688.2,3688.1,0.005]
[1736185070429,0.02245676,3688.5,3688.1,0.7639]
[1736185070641,0.03632964,3688.4,3688.1,0.7639]
[1736185071020,0.02245676,3688.6,3688.1,0.7639]
[1736185071220,0.03635003,3688.5,3688.1,0.7639]
[1736185071429,0.03635003,3688.5,3688.2,0.7589]
[1736185071634,0.02245676,3688.9,3688.2,1.13415125]
[1736185071860,2.71099,3688.7,3688.2,0.7589]
[1736185072162,0.05880259,3688.6,3688.2,0.7589]
[1736185072739,0.05880259,3688.6,3688.1,0.005]
[1736185072740,2.71134,3688.2,3688.1,0.005]
[1736185073047,2.74774778,3688.2,3688.1,0.005]
[1736185073448,0.03640778,3688.2,3688.1,0.005]
[1736185073649,2.73365676,3688.4,3688.1,0.005]
[1736185073861,0.0365387,3688.3,3688.1,0.005]
[1736185074324,2.77026546,3688.3,3688.1,0.005]
[1736185074662,0.05899546,3688.3,3688.1,0.005]
[1736185074963,2.71134,3688.2,3688.1,0.005]
[1736185075120,2.74784413,3688.2,3688.1,0.005]
[1736185075874,0.03650413,3688.2,3688.1,0.005]
[1736185076359,2.71122,3688.4,3688.2,0.8059]
[1736185076924,2.71106,3688.6,3688.2,0.8059]
[1736185077187,2.70779698,3688.6,3688.2,0.8059]
[1736185077341,0.03646922,3688.5,3688.2,0.8059]
[1736185077540,2.71099,3688.7,3688.2,0.8059]
[1736185077774,0.03654698,3688.6,3688.2,0.8059]
[1736185078401,2.71114,3688.5,3688.2,0.8083]
[1736185078583,0.03651719,3688.4,3688.2,0.8083]
[1736185079673,0.03651719,3688.4,3688.1,0.005]
[1736185079879,2.7113,3688.3,3688.1,0.005]
[1736185080310,2.77028415,3688.2,3688.1,0.005]
[1736185080876,3.52248415,3688.2,3688.1,0.005]
[1736185081976,7.28913415,3688.2,3688.1,0.005]
[1736185082181,10.26667739,3688.2,3688.1,0.005]
[1736185084611,9.52197739,3688.2,3688.1,1e-05]
[1736185084781,5.71142,3688.1,3688.0,1e-05]
[1736185084984,12.06793708,3688.1,3688.0,1e-05]
[1736185085216,9.60769719,3687.9,3687.8,5.45e-06]
[1736185085531,14.77288447,3687.9,3687.8,5.45e-06]
[1736185086657,0.0075,3687.7,3686.6,0.1793834]
[1736185086858,9.12077719,3686.7,3686.6,0.1793834]
[1736185087312,13.86753529,3686.7,3686.6,0.1793834]
[1736185087461,12.38589529,3686.7,3686.6,0.1793834]
[1736185087661,11.98175529,3686.7,3686.6,0.1793834]
[1736185088170,11.98925529,3686.7,3686.6,3.4e-06]
[1736185088364,0.0075,3686.4,3685.8,1.1338673]
[1736185088620,5.28886719,3685.9,3685.8,1.1338673]
[1736185088797,8.87071719,3685.9,3685.8,1.1338673]
[1736185089312,8.87071719,3685.9,3685.7,1.70351096]
[1736185089313,2.71311,3685.8,3685.7,0.00271]
[1736185089496,7.73556676,3685.8,3685.7,0.00271]
[1736185089702,7.74709472,3685.8,3685.7,0.00271]
[1736185090422,9.00523594,3685.8,3685.7,0.00271]
[1736185091485,12.00523594,3685.8,3685.7,0.00271]
[1736185091702,12.00523594,3685.8,3684.8,0.00409241]
[1736185091703,0.0075,3685.6,3684.8,0.00409241]
[1736185091918,5.71377,3684.9,3684.8,0.00409241]
[1736185092251,8.32297473,3684.9,3684.8,0.00409241]
[1736185092404,0.03337754,3684.9,3684.8,0.00409241]
[1736185092588,0.02245676,3685.0,3684.8,0.00409241]
[1736185092935,0.03336915,3684.9,3684.8,0.00409241]
[1736185093240,0.03336915,3684.9,3684.8,0.82099241]
[1736185093391,2.73565676,3685.7,3684.8,0.82099241]
[1736185093594,0.033338,3685.6,3684.8,0.82099241]
[1736185094254,0.033338,3685.6,3685.0,0.7975]
[1736185094540,2.71299,3686.0,3685.0,0.7975]
[1736185094747,0.03288955,3685.5,3685.1,0.02713199]
[1736185094941,0.02245676,3685.9,3685.1,0.02713199]
[1736185095122,0.03287157,3685.4,3685.0,0.7975]
[1736185095311,2.73550676,3685.9,3685.1,0.35153524]
[1736185095507,0.03305395,3685.3,3685.0,0.7975]
[1736185095742,2.73575676,3685.6,3685.0,0.7975]
[1736185096205,0.0332769,3685.5,3685.0,0.7975]
[1736185096547,0.0332769,3685.5,3684.8,0.00409241]
[1736185096847,2.73576676,3685.6,3684.8,0.03122993]
[1736185096992,0.03357087,3685.5,3684.8,0.03122993]
[1736185097192,2.73558676,3685.8,3684.9,0.35443199]
[1736185097492,0.03359007,3685.7,3685.0,0.0271342]
[1736185097692,2.71333,3685.5,3684.8,0.00409241]
[1736185098027,0.05601024,3685.4,3684.8,0.00409241]
[1736185098421,2.76943024,3685.4,3684.8,0.00409241]
[1736185099213,0.27694302,3685.3,3684.8,0.00409241]
[1736185099411,0.05586837,3685.2,3684.8,0.00409241]
[1736185101510,0.03341161,3685.2,3684.8,0.00409241]
[1736185101721,0.03341161,3685.2,3684.8,0.03122822]
[1736185101930,0.02245676,3685.7,3685.1,35.0]
[1736185102130,2.71347,3685.4,3685.1,35.0]
[1736185102311,2.57582719,3685.8,3684.8,0.00409241]
[1736185102526,0.03322797,3685.3,3684.9,0.7652]
[1736185102728,0.02245676,3685.6,3685.2,35.0]
[1736185103048,2.71345,3685.4,3685.2,35.0]
[1736185103392,2.71348,3685.3,3685.2,35.0]
[1736185105826,2.7136,3685.2,3684.9,0.7652]
[1736185106199,2.73609676,3685.1,3684.9,0.7652]
[1736185106905,2.73609676,3685.1,3685.0,35.0]
[1736185107105,2.71364,3685.1,3685.0,35.0]
[1736185108622,3.0,3685.7,3685.0,35.0]
[1736185108816,0.02245676,3685.7,3685.0,35.0]
[1736185109024,2.71305,3685.9,3685.1,0.02713498]
[1736185109355,0.05577483,3685.8,3684.9,0.7652]
[1736185109523,0.05577483,3685.8,3685.7,35.0]
[1736185109872,0.03331807,3685.8,3685.7,35.0]
[1736185110165,0.03331807,3685.8,3685.7,35.8217]
[1736185110365,0.03331807,3685.8,3685.7,38.53927592]
[1736185110517,2.73513676,3686.4,3685.7,38.53927592]
[1736185110717,2.73513676,3686.4,3685.7,35.8217]
[1736185111023,0.03346531,3686.3,3685.7,35.8217]
[1736185111236,2.7126,3686.5,3685.7,35.8217]
[1736185111473,0.05593699,3686.4,3685.8,0.02712866]
[1736185111671,0.02245676,3686.4,3685.8,0.02712866]
[1736185111972,0.03345982,3686.3,3685.8,0.02712866]
[1736185112632,0.03345982,3686.3,3685.7,35.8217]
[1736185113459,0.03345982,3686.3,3685.8,0.0271283]
[1736185113820,2.73499676,3686.6,3685.8,0.0271283]
[1736185114021,2.73499676,3686.6,3685.7,35.8217]
[1736185114333,2.71268,3686.4,3685.7,35.8217]
[1736185114513,2.73513676,3686.4,3685.7,35.8217]
[1736185114721,2.74647062,3686.3,3685.7,35.8217]
[1736185115218,0.03369062,3686.3,3685.8,0.02712833]
[1736185115647,0.03369062,3686.3,3685.9,0.7824]
[1736185116150,0.02245676,3686.6,3685.9,0.7824]
[1736185116667,2.73504676,3686.6,3685.9,0.7824]
[1736185116866,0.03430496,3686.5,3685.9,0.7824]
[1736185117171,2.74692496,3686.5,3685.9,0.7824]
[1736185117340,2.71274,3686.3,3685.9,0.7824]
[1736185117669,0.02245676,3686.2,3685.9,0.7824]
[1736185117821,2.71296,3686.0,3685.7,35.0]
[1736185118223,0.03420709,3685.9,3685.7,35.0]
[1736185119140,2.71311,3685.8,3685.7,35.0]
[1736185119327,3.51671843,3685.8,3685.7,35.0]
[1736185119529,3.55083799,3685.8,3685.7,35.0]
[1736185120373,0.03411956,3685.8,3685.7,35.0]
[1736185120876,3.51922,3686.7,3685.7,35.8128]